fUSD/lending_fUSD_20240624
["ID","MTS","AMOUNT","RATE_DAILY","PERIOD"]
[330304364,1719245353239,-88823.03342116,0.000149,2]
[330304365,1719245353272,-500.0,0.000149,2]
[330304366,1719245353296,-12105.97657884,0.000149,2]
[330304367,1719245355179,-6899.2654,0.000149,2]
[330304368,1719245360206,-16896.82682116,0.000149,2]
[330304369,1719245360227,-342.3565,0.000149,2]
[330304370,1719245360250,-1036.97816245,0.000149,2]
[330304371,1719245360270,-1000.0,0.00014905,2]
[330304372,1719245360292,-704.11855881,0.00014922,2]
[330304373,1719245360314,-309.25,0.00014945,2]
[330304374,1719245360335,-56816.59571138,0.00015,2]
[330304386,1719245431852,-300.0,0.00014999,2]
[330304387,1719245431867,-321.39302271,0.00015,2]
[330304388,1719245432090,-282629.99978686,0.00015,2]
[330304389,1719245432166,-707.89978802,0.00015,2]
[330304390,1719245432185,-278.375,0.00015,2]
[330304391,1719245432202,-44096.27105361,0.00015,2]
[330304392,1719245432342,-913.962264,0.00015,2]
[330304393,1719245432360,-23736.18,0.00015,2]
[330304396,1719245437734,-211.83126119,0.000149,2]
[330304397,1719245437744,-4701.86873881,0.00015,2]
[330304398,1719245437755,-2202.83073604,0.00015,2]
[330304399,1719245437772,-477.85818894,0.00015,2]
[330304400,1719245437897,-2329.20129299,0.00015,2]
[330304401,1719245437909,-727.27,0.00015,2]
[330304402,1719245437921,-741.3170906,0.00015,2]
[330304403,1719245437932,-329.34918918,0.00015,2]
[330304404,1719245437948,-2677.50058422,0.00015,2]
[330304405,1719245437959,-4003.14599228,0.00015,2]
[330304406,1719245437971,-570.54008631,0.00015,2]
[330304407,1719245437982,-121600.0,0.00015,2]
[330304408,1719245437993,-875.33626534,0.00015,2]
[330304409,1719245438008,-84208.69861266,0.00015,2]
[330304410,1719245438023,-396.96657,0.00015,2]
[330304411,1719245438035,-44389.83884914,0.00015,2]
[330304412,1719245438051,-610.42842,0.00015,2]
[330304413,1719245438063,-873.81182588,0.00015,2]
[330304414,1719245438075,-1214.0,0.00015,2]
[330304415,1719245438101,-29674.25716062,0.00015,2]
[330304416,1719245438113,-43435.7168866,0.00015,2]
[330304417,1719245438124,-17803.36008323,0.00015,2]
[330304418,1719245438147,-609.68726223,0.00015,2]
[330304419,1719245438162,-8222.87562311,0.00015,2]
[330304420,1719245438175,-9872.58570166,0.00015,2]
[330304423,1719245438225,-1361.36,0.00015,2]
[330304424,1719245438241,-1245.03939917,0.00015,2]
[330304425,1719245438253,-14416.20232512,0.00015,2]
[330304433,1719245439886,-5341.56197791,0.00015,2]
[330304434,1719245439898,-703.90320097,0.00015,2]
[330304435,1719245440007,-5669.09445492,0.00015,2]
[330304436,1719245440070,-2000.29930883,0.00015,2]
[330304437,1719245440082,-1132.44709814,0.00015,2]
[330304438,1719245440093,-400.4380872,0.00015,2]
[330304439,1719245440105,-22870.23458186,0.00015,2]
[330304440,1719245440137,-195976.80199825,0.00015,2]
[330304441,1719245440200,-278.90148217,0.00015,2]
[330304442,1719245440213,-8005.19999979,0.00015,2]
[330304443,1719245440229,-2799.64,0.00015,2]
[330304444,1719245440266,-17956.43332766,0.00015,2]
[330304445,1719245440278,-306.568734,0.00015,2]
[330304446,1719245440294,-551.13625375,0.00015,2]
[330304447,1719245440337,-317.44659973,0.00015,2]
[330304461,1719245442784,-369.12270208,0.00015,2]
[330304462,1719245442795,-681.83583395,0.00015,2]
[330304463,1719245442806,-392.66360108,0.00015,2]
[330304464,1719245442822,-531.80188952,0.00015,2]
[330304468,1719245445396,-3041.95,0.00015,2]
[330304469,1719245445424,-1310.42936115,0.00015,2]
[330304470,1719245445436,-330.3755325,0.00015,2]
[330304471,1719245445451,-17572.37653834,0.00015,2]
[330304472,1719245445469,-173325.74104496,0.00015,2]
[330304473,1719245445480,-394.20778259,0.00015,2]
[330304474,1719245445491,-10158.34177193,0.00015,2]
[330304475,1719245445502,-1252.44792335,0.00015,2]
[330304476,1719245445529,-791.68781801,0.00015,2]
[330304477,1719245445540,-4540.0,0.00015,2]
[330304478,1719245445551,-268.77602007,0.00015,2]
[330304479,1719245445562,-378.31394208,0.00015,2]
[330304480,1719245445573,-1734.78366287,0.00015,2]
[330304488,1719245446248,-500.10126801,0.00015,2]
[330304489,1719245446263,-645.75498577,0.00015,2]
[330304490,1719245446276,-898.99522388,0.00015,2]
[330304491,1719245446287,-256721.95679126,0.00015,2]
[330304492,1719245446351,-155.0,0.000149,2]
[330304493,1719245446360,-147.524,0.00015,2]
[330304494,1719245446405,-3941.16864385,0.00015,2]
[330304495,1719245446416,-1418.77048282,0.00015,2]
[330304496,1719245446459,-1222.58142477,0.00015,2]
[330304497,1719245446474,-6499.0,0.00015,2]
[330304498,1719245446485,-1065.01364503,0.00015,2]
[330304499,1719245446496,-1637.04888582,0.00015,2]
[330304500,1719245446538,-909.43819293,0.00015,2]
[330304504,1719245555519,162.27,0.00018849,30]
[330304524,1719246228971,162.27,0.00018849,30]
[330304533,1719246388795,535.17,0.00012299,2]
[330304534,1719246439389,280.54185119,0.00012299,2]
[330304535,1719246439424,271.95217033,0.00012299,2]
[330304538,1719246535325,552.49402152,0.00012299,2]
[330304539,1719246566516,-2374.1689164,0.00012647,2]
[330304540,1719246566540,-681.01683594,0.00012648,2]
[330304541,1719246566562,-292.9447,0.0001265,2]
[330304542,1719246566583,-526.48485008,0.00012682,2]
[330304543,1719246566604,-10537.00283536,0.00012683,2]
[330304544,1719246566630,-150.0,0.00013009,2]
[330304545,1719246566652,-4787.81704601,0.0001308,2]
[330304546,1719246566675,-161.05154284,0.00013241,2]
[330304547,1719246566696,-25243.21790763,0.00013999,2]
[330304548,1719246566720,-215.46,0.00014011,2]
[330304549,1719246566741,-354.78,0.00014058,2]
[330304550,1719246566762,-154.62,0.00014076,2]
[330304551,1719246566784,-150.0,0.00014361,2]
[330304552,1719246566805,-250.0,0.00014478,2]
[330304553,1719246566829,-171.31,0.0001455,2]
[330304554,1719246566851,-627.74,0.00014554,2]
[330304555,1719246566874,-535.17,0.00014563,2]
[330304556,1719246566896,-6435.17,0.00014563,2]
[330304557,1719246566919,-1000.0,0.00014754,2]
[330304558,1719246566942,-250.0,0.00014754,2]
[330304559,1719246566964,-4320.157,0.000148,2]
[330304560,1719246566986,-460.66418341,0.000148,2]
[330304561,1719246567008,-291.81420912,0.000148,2]
[330304562,1719246567035,-344.9087333,0.000148,2]
[330304563,1719246567058,-41.23879726,0.00014849,2]
[330304564,1719246569117,650.69314575,0.00012584,2]
[330304565,1719246569151,8.03641325,0.00012584,2]
[330304567,1719246574299,-227.97015247,0.00014849,2]
[330304568,1719246574320,-2140.8564,0.0001485,2]
[330304569,1719246574341,-411.32,0.0001489,3]
[330304570,1719246574362,-19604.0280983,0.00014899,2]
[330304571,1719246574382,-2324.4028,0.000149,2]
[330304572,1719246574402,-806.0886,0.000149,2]
[330304573,1719246574423,-25943.17494923,0.000149,2]
[330304597,1719246631991,-991.887266,0.00014795,2]
[330304599,1719246632008,-150.0,0.00014899,2]
[330304602,1719246632026,-308.112734,0.000149,2]
[330304606,1719246632069,-2396.27302,0.000149,2]
[330304607,1719246632090,-531.77659901,0.000149,2]
[330304608,1719246632109,-292.11604372,0.000149,2]
[330304609,1719246632142,-451.63886766,0.000149,2]
[330304610,1719246632639,-52335.46828638,0.000149,2]
[330304611,1719246632656,-245000.0,0.000149,2]
[330304612,1719246632671,-7500.0,0.000149,2]
[330304613,1719246632687,-170.73160292,0.000149,2]
[330304614,1719246632702,-1089.35141496,0.000149,2]
[330304615,1719246632717,-2115.2032197,0.00014908,2]
[330304616,1719246632731,-4787.81704601,0.00014908,2]
[330304617,1719246632746,-10537.00283536,0.00014908,2]
[330304618,1719246632761,-200.0,0.00014943,2]
[330304619,1719246632776,-310001.04825799,0.00015,2]
[330304620,1719246632822,-593757.54409218,0.00015,2]
[330304638,1719246638026,-0.00794017,0.00012299,2]
[330304639,1719246638420,-552.48608135,0.00012299,2]
[330304640,1719246638431,-3001.46731375,0.000148,2]
[330304644,1719246640175,-0.08452761,0.000148,2]
[330304645,1719246640187,-316.93600704,0.000148,2]
[330304646,1719246641052,-6308.24050237,0.000148,2]
[330304702,1719246643585,-831.80174923,0.000148,2]
[330304703,1719246643594,-891.4,0.0001499,3]
[330304704,1719246643604,-174.53141693,0.0001499,2]
[330304705,1719246643613,-60984.4176721,0.00015,2]
[330304706,1719246643625,-15258.42169882,0.00015,2]
[330304707,1719246644244,-0.00603275,0.00015,2]
[330304708,1719246644305,-695.78167097,0.00015,2]
[330304713,1719246646338,-7500.0,0.000148,2]
[330304714,1719246646348,-3365.561407,0.00015,2]
[330304715,1719246646360,-444.44834743,0.00015,2]
[330304716,1719246646479,-9468.38948182,0.00015,2]
[330304717,1719246646532,-2433.70081161,0.00015,2]
[330304718,1719246646543,-487.54532209,0.00015,2]
[330304729,1719246773322,162.27,0.00018849,30]
[330304735,1719246865498,164.28,0.00011873,2]
[330304739,1719246915347,552.49402152,0.00011873,2]
[330304740,1719246917527,77.30050393,0.00011873,2]
[330304741,1719246917739,497.92716049,0.00011873,2]
[330304742,1719246917776,1685.30109084,0.00011873,2]
[330304743,1719246917811,1479.65179853,0.00011873,2]
[330304744,1719246917844,1392.55653472,0.00011873,2]
[330304745,1719246917883,1427.94492272,0.00011873,2]
[330304746,1719246917918,1521.55509316,0.00011873,2]
[330304747,1719246917953,1759.77238159,0.00011873,2]
[330304748,1719246917988,2000.47013256,0.00011873,2]
[330304749,1719246918024,2694.8353832,0.00011873,2]
[330304750,1719246918059,1604.20196949,0.00011873,2]
[330304751,1719246918094,1842.90879855,0.00011873,2]
[330304752,1719246918138,1392.03594502,0.00011873,2]
[330304753,1719246918176,923.28541346,0.00011873,2]
[330304758,1719246931805,601.29,0.00012404,2]
[330304765,1719247029380,255.33537416,0.00012404,2]
[330304766,1719247029417,74.46432007,0.00012404,2]
[330304767,1719247031519,155.12258199,0.00012404,2]
[330304770,1719247040337,263.25536826,0.00012404,2]
[330304771,1719247043531,985.26395569,0.00012404,2]
[330304772,1719247043565,1575.4479878,0.00012404,2]
[330304777,1719247111760,150.5,0.0001499,30]
[330304778,1719247112336,150.5,0.0001498,30]
[330304779,1719247112837,150.5,0.0001497,30]
[330304785,1719247230261,222.53,0.0001499,30]
[330304786,1719247230347,150.5,0.0001499,30]
[330304787,1719247230923,150.5,0.0001498,30]
[330304788,1719247231416,158.19,0.0001497,30]
[330304800,1719247336053,162.27,0.00018849,30]
[330304837,1719247745254,-242.26988366,0.00011403,2]
[330304838,1719247753151,-271.44859079,0.00011403,2]
[330304839,1719247756578,-57.50152555,0.00011403,2]
[330304840,1719247756598,-1806.58228337,0.00013235,2]
[330304842,1719247773741,-22093.41771663,0.00013235,2]
[330304843,1719247773764,-250.0,0.00013495,2]
[330304844,1719247773788,-156.69,0.00013541,2]
[330304845,1719247773815,-571.22,0.00013667,2]
[330304846,1719247773837,-200.38,0.00013699,2]
[330304847,1719247773859,-250.0,0.00013706,2]
[330304848,1719247773882,-150.0,0.00013714,2]
[330304849,1719247773906,-172.58,0.00013721,2]
[330304850,1719247773928,-299.99,0.00013721,2]
[330304851,1719247773951,-161.58,0.00013752,2]
[330304852,1719247773985,-156.69,0.00013776,2]
[330304853,1719247774007,-150.0,0.00013863,2]
[330304854,1719247774029,-6758.1406,0.000139,2]
[330304855,1719247774050,-12115.1825,0.000139,2]
[330304856,1719247774078,-309.43393097,0.000139,2]
[330304860,1719247804666,-162.6345703,0.00013135,2]
[330304861,1719247804702,-310.0,0.00013235,2]
[330304862,1719247804742,-301.34760359,0.00013235,2]
[330304863,1719247804775,-2450.78643665,0.00013235,2]
[330304866,1719247804818,-3224.76861054,0.00013235,2]
[330304868,1719247804872,-3224.76861054,0.00013235,2]
[330304872,1719247805433,-3224.76861054,0.00013235,2]
[330304873,1719247805478,-3224.76861054,0.00013235,2]
[330304874,1719247808807,-2382.52531694,0.00013235,2]
[330304875,1719247808844,-840.12,0.00013261,2]
[330304876,1719247808878,-2.1232936,0.00013751,2]
[330304903,1719247832436,-158.76684452,0.00013751,2]
[330304904,1719247832445,-4378.58,0.00013872,2]
[330304905,1719247832455,-724.99413129,0.00013899,2]
[330304906,1719247832464,-10537.00283536,0.00013899,2]
[330304907,1719247832474,-7333.08866903,0.000139,2]
[330304908,1719247832483,-7500.0,0.000139,2]
[330304909,1719247832492,-1302.1643,0.000139,2]
[330304910,1719247832501,-499.99,0.00013908,2]
[330304911,1719247832510,-1406.79,0.00013908,2]
[330304912,1719247832519,-150.99,0.00013908,2]
[330304913,1719247832529,-703.63901409,0.00013908,2]
[330304914,1719247832538,-938.697981,0.00013973,2]
[330304915,1719247832547,-370.49091679,0.00013999,2]
[330304916,1719247832556,-191885.09064814,0.00014,2]
[330304917,1719247832568,-1513.036525,0.00014,2]
[330304918,1719247832579,-6041.1,0.00014,2]
[330304919,1719247832743,-1973.22629204,0.00014,2]
[330304920,1719247832762,-3633.63,0.00014,2]
[330304921,1719247832773,-3301.04914674,0.00014,2]
[330304922,1719247832784,-844.0,0.00014,2]
[330304923,1719247832795,-2132.32698548,0.00014,2]
[330304924,1719247833018,-3738.06263077,0.00014,2]
[330304925,1719247833030,-777.495996,0.00014,2]
[330304926,1719247833042,-332.00020369,0.00014,2]
[330304935,1719247838853,-3111.9919513,0.00014,2]
[330304936,1719247838884,-30250.0,0.00014,2]
[330304937,1719247838897,-326.0,0.00014,2]
[330304938,1719247839031,-1312.20657636,0.00014,2]
[330304939,1719247839042,-318.20514663,0.00014,2]
[330304940,1719247839055,-30333.0,0.00014,2]
[330304941,1719247839067,-30352.99999995,0.00014,2]
[330304948,1719247840536,-688.84764698,0.00014,2]
[330304949,1719247840548,-610.66722343,0.00014,2]
[330304950,1719247840804,-1028.517,0.00014,2]
[330304952,1719247840816,-1719.48410451,0.00014,2]
[330304954,1719247840828,-921.49207379,0.00014,2]
[330304956,1719247840841,-1148.83288585,0.00014,2]
[330304967,1719247840936,-581.24972892,0.00014,2]
[330304980,1719247841059,-5076.20551834,0.00014,2]
[330304982,1719247841069,-156.69,0.00014011,2]
[330304984,1719247841079,-1000.0,0.00014013,2]
[330304986,1719247841089,-3402.51,0.00014013,2]
[330304988,1719247841102,-156.69,0.00014246,2]
[330304990,1719247841116,-200.0,0.000145,5]
[330304992,1719247841126,-500.0,0.000146,5]
[330304994,1719247841137,-172.89,0.00014602,2]
[330304996,1719247841148,-364.81837247,0.00014614,2]
[330304998,1719247841158,-4229.37,0.00014634,2]
[330305000,1719247841167,-161.58,0.00014669,2]
[330305002,1719247841177,-800.0,0.000147,5]
[330305004,1719247841187,-938.697981,0.00014795,2]
[330305006,1719247841197,-1141.7114462,0.00014799,5]
[330305007,1719247841207,-605.9742,0.000148,2]
[330305009,1719247841216,-4054.072,0.000148,2]
[330305011,1719247841226,-150.0,0.000148,2]
[330305013,1719247841236,-57876.0989,0.000148,2]
[330305016,1719247841246,-1000.0,0.000148,2]
[330305017,1719247841256,-1100.0,0.000148,5]
[330305019,1719247841266,-25243.21790763,0.00014899,2]
[330305021,1719247841277,-185.61172509,0.000149,2]
[330305023,1719247841286,-178.18494106,0.000149,2]
[330305025,1719247841296,-171.5666584,0.000149,2]
[330305027,1719247841306,-375.61618975,0.000149,2]
[330305029,1719247841316,-1400.0,0.000149,5]
[330305031,1719247841326,-2605.23681653,0.000149,2]
[330305033,1719247841335,-211.83126119,0.000149,2]
[330305035,1719247841345,-173.574,0.000149,2]
[330305037,1719247841359,-703.63901406,0.00014906,2]
[330305039,1719247841369,-283.50525412,0.00014951,2]
[330305041,1719247841378,-158.86009896,0.00014974,2]
[330305043,1719247841388,-167.12,0.00014975,2]
[330305045,1719247841397,-5681.4147384,0.00014989,2]
[330305047,1719247841407,-185.4639996,0.0001499,2]
[330305049,1719247841416,-185.4639996,0.0001499,2]
[330305051,1719247841425,-767.55929539,0.00014999,2]
[330305053,1719247841435,-243947.96969765,0.00015,2]
[330305055,1719247841449,-836.72847177,0.00015,2]
[330305278,1719247843516,-9085.11228002,0.00015,2]
[330305281,1719247843528,-10180.87,0.00015,2]
[330305286,1719247843539,-302.623321,0.00015,2]
[330305289,1719247843549,-2412.0,0.00015,2]
[330305303,1719247843644,-4465.15030734,0.00015,2]
[330305305,1719247843655,-305.5875,0.00015,2]
[330305307,1719247843666,-917.7607544,0.00015,2]
[330305591,1719247846500,-371.88291753,0.00015,2]
[330305593,1719247846511,-1324.8,0.00015,2]
[330305596,1719247846523,-1154974.28533188,0.00015,2]
[330305642,1719247846725,-0.15028231,0.00015,2]
[330305646,1719247846736,-1511.3,0.00015,2]
[330305650,1719247846747,-1803.08585291,0.00015,2]
[330305663,1719247846806,-511.70619693,0.00014999,2]
[330305666,1719247846816,-1400.55359634,0.00014999,7]
[330305669,1719247846826,-894.74725675,0.00015,2]
[330305673,1719247846840,-650.09,0.00015,2]
[330305677,1719247846852,-518.75421897,0.00015,2]
[330305680,1719247846866,-363.366,0.00015,2]
[330305756,1719247847531,-59596.78978493,0.00015,2]
[330305761,1719247847576,-760.169388,0.00015,2]
[330305772,1719247847735,-489337.12465614,0.00015,2]
[330305839,1719247848415,-1901.527235,0.00015,2]
[330307525,1719247868893,162.27,0.00018849,30]
[330307527,1719248005331,1000.0,0.00025999,120]
[330307533,1719248148654,312.68551532,0.00026,120]
[330307534,1719248240440,707.66190766,0.00025999,120]
[330307538,1719248358530,420.11489582,0.00026,120]
[330307539,1719248403528,391.329355,0.00026,120]
[330307543,1719248497192,162.27,0.00018849,30]
[330307547,1719248568359,1400.55359634,0.00013999,7]
[330307555,1719248808371,-4787.81704601,0.00011872,2]
[330307556,1719248808395,-300.0,0.0001203,2]
[330307557,1719248808424,-150.0,0.0001203,2]
[330307558,1719248808448,-300.0,0.0001203,2]
[330307559,1719248808468,-2883.6533784,0.0001203,2]
[330307560,1719248808490,-1578.52957559,0.00012031,2]
[330307561,1719248810004,-10000.0,0.00012031,2]
[330307562,1719248810498,-6136.91597568,0.00012031,2]
[330307563,1719248810520,-545.5,0.00012131,2]
[330307564,1719248810542,-3317.58402432,0.00013135,2]
[330307565,1719248811013,-678.26857568,0.00013135,2]
[330307566,1719248811034,-9321.73142432,0.00013209,2]
[330307567,1719248811543,-1215.27141104,0.00013209,2]
[330307568,1719248811567,-210.0,0.00013233,2]
[330307569,1719248811589,-182.98,0.00013699,2]
[330307570,1719248811612,-8391.74858896,0.00013745,2]
[330307571,1719248812139,-10000.0,0.00013745,2]
[330307572,1719248813048,-5508.25141104,0.00013745,2]
[330307573,1719248813070,-250.0,0.00013769,2]
[330307574,1719248813093,-200.0,0.00013837,2]
[330307575,1719248813115,-4041.74858896,0.000139,2]
[330307582,1719248848657,-161.58,0.00013699,2]
[330307583,1719248848680,-2593.93271104,0.000139,2]
[330307584,1719248848702,-7244.48728896,0.000139,2]
[330307628,1719249032918,-259.1,0.00012266,2]
[330307632,1719249033606,-259.12,0.00012266,2]
[330307634,1719249033622,-258.61409544,0.00013789,2]
[330307636,1719249033638,-300.0,0.00013899,2]
[330307639,1719249033654,-1867.21901104,0.000139,2]
[330307641,1719249033669,-307.8224,0.000139,2]
[330307644,1719249033685,-263.30586217,0.000139,2]
[330307646,1719249033701,-6040.01331268,0.000139,2]
[330307649,1719249033727,-150.0,0.00013997,2]
[330307652,1719249033743,-250.0,0.00014001,2]
[330307654,1719249033758,-159.4072037,0.00014066,2]
[330307657,1719249033776,-1262.89716959,0.00014066,2]
[330307659,1719249033792,-559.4,0.00014067,2]
[330307661,1719249033808,-150.99,0.00014126,2]
[330307662,1719249033824,-172.58,0.00014154,2]
[330307663,1719249033840,-253.90432169,0.00014178,2]
[330307664,1719249033855,-173.72,0.00014179,2]
[330307665,1719249033872,-1000.0,0.00014366,2]
[330307666,1719249033889,-499.99,0.00014366,2]
[330307667,1719249033904,-155.0,0.00014394,2]
[330307668,1719249033920,-518.22,0.0001453,2]
[330307669,1719249033937,-384.20872226,0.00014561,2]
[330307670,1719249033954,-750.958385,0.00014795,2]
[330307671,1719249033969,-408.21231223,0.000149,5]
[330307672,1719249033984,-854.55653694,0.000149,2]
[330307673,1719249033998,-168.27772144,0.000149,2]
[330307674,1719249034013,-1447.8081283,0.000149,2]
[330307675,1719249034029,-699.77570439,0.000149,2]
[330307676,1719249034044,-187.46379308,0.000149,2]
[330307677,1719249034061,-161.3672115,0.000149,2]
[330307678,1719249034313,-2500.0,0.000149,2]
[330307679,1719249034341,-2623.65203153,0.000149,2]
[330307680,1719249034351,-7500.0,0.000149,2]
[330307681,1719249034361,-16613.4697,0.000149,2]
[330307682,1719249034371,-220.09,0.00014904,3]
[330307683,1719249034381,-5881.8578136,0.00014989,2]
[330307684,1719249034390,-25179.9750019,0.00014989,2]
[330307685,1719249034400,-1165.6412328,0.00014989,2]
[330307686,1719249034410,-185.46399962,0.0001499,2]
[330307687,1719249034419,-473.13013721,0.00014999,2]
[330307688,1719249034429,-193865.63271358,0.00015,2]
[330307689,1719249034441,-1655.64315445,0.00015,2]
[330307690,1719249034453,-3332.62267,0.00015,2]
[330307691,1719249034473,-349.70936002,0.00015,2]
[330307692,1719249034485,-1528.35103245,0.00015,2]
[330307693,1719249034497,-850073.48606378,0.00015,2]
[330307694,1719249034508,-477535.67847166,0.00015,2]
[330307695,1719249034522,-2470.24297497,0.00015,2]
[330307696,1719249034533,-991.38567962,0.00015,2]
[330307697,1719249034545,-287.37338502,0.00015,2]
[330307698,1719249034638,-1579.80960355,0.00015,2]
[330307699,1719249034651,-444569.82348668,0.00015,2]
[330307700,1719249034663,-2409.9075,0.00015,2]
[330307701,1719249034675,-4606.79386935,0.00015,2]
[330307702,1719249034687,-648.56859254,0.00015,2]
[330307703,1719249034700,-5845.47387287,0.00015,2]
[330307704,1719249034720,-6071.01921599,0.00015,2]
[330307705,1719249034732,-604.03566,0.00015,2]
[330307706,1719249034743,-2587.02208,0.00015,2]
[330307707,1719249034755,-15090.19998846,0.00015,2]
[330307708,1719249034766,-24363.22798062,0.00015,2]
[330307709,1719249034778,-757.07841049,0.00015,2]
[330307710,1719249034790,-539.69020108,0.00015,2]
[330307715,1719249038710,-3135.10340248,0.000149,2]
[330307716,1719249038725,-2023.30749752,0.000149,2]
[330307717,1719249038736,-473.13013721,0.00014999,2]
[330307718,1719249038747,-1792.56111656,0.00014999,2]
[330307719,1719249038759,-4427.9810409,0.00014999,2]
[330307720,1719249038769,-109353.69685864,0.00015,2]
[330307721,1719249038781,-670.65744082,0.00015,2]
[330307722,1719249038794,-995.94,0.00015,2]
[330307723,1719249038940,-16561.88188358,0.00015,2]
[330307724,1719249038952,-319.332,0.00015,2]
[330307725,1719249038967,-307.07755376,0.00015,2]
[330307726,1719249038979,-312.783,0.00015,2]
[330307727,1719249039125,-13504.0832154,0.00015,2]
[330307728,1719249039135,-2670.9167846,0.00015,2]
[330307729,1719249039147,-10191.6323788,0.00015,2]
[330307730,1719249039157,-169.55934429,0.00015,2]
[330307731,1719249039168,-622.21690927,0.00015,2]
[330307732,1719249039178,-1500.0,0.00015,2]
[330307733,1719249039189,-1500.0,0.00015,2]
[330307734,1719249039198,-1500.0,0.00015,2]
[330307735,1719249039208,-1500.0,0.00015,2]
[330307736,1719249039228,-1500.0,0.00015,2]
[330307737,1719249039238,-1500.0,0.00015,2]
[330307738,1719249039251,-1500.0,0.00015,2]
[330307739,1719249039261,-3964.09852975,0.00015,2]
[330307740,1719249039271,-1699.09,0.00015,2]
[330307741,1719249039280,-1500.0,0.00015,2]
[330307742,1719249039291,-5000.0,0.00015,2]
[330307743,1719249039301,-19675.65519308,0.00015,2]
[330307744,1719249039313,-466.43159848,0.00015,2]
[330307745,1719249039325,-32810.0,0.00015,2]
[330307746,1719249039337,-4289.05507637,0.00015,2]
[330307747,1719249039347,-1000.0,0.00015,2]
[330307748,1719249039357,-1000.0,0.00015,2]
[330307749,1719249039366,-798.69866002,0.00015,2]
[330307750,1719249039376,-1784.047,0.00015,2]
[330307751,1719249039386,-6220.54215746,0.00015029,2]
[330307752,1719249039396,-345.97900744,0.00015029,2]
[330307753,1719249039407,-1784.04701,0.0001503,2]
[330307754,1719249039418,-536.61844249,0.00015067,2]
[330307755,1719249039431,-180.39037045,0.00015067,2]
[330307756,1719249039441,-717.00881294,0.00015228,2]
[330307757,1719249039451,-420.0,0.00015229,2]
[330307758,1719249039466,-313.96287417,0.0001535,2]
[330307759,1719249039478,-541.74,0.0001535,2]
[330307760,1719249039490,-928.34413583,0.0001535,2]
[330307761,1719249039502,-205.0,0.00015397,2]
[330307762,1719249039514,-155.79468526,0.00015499,2]
[330307763,1719249039524,-155.0167928,0.000155,2]
[330307764,1719249039535,-172.89,0.00015535,2]
[330307765,1719249039547,-1500.0,0.000156,2]
[330307766,1719249039557,-750.958385,0.00015616,2]
[330307767,1719249039567,-2605.23681649,0.00015626,2]
[330307768,1719249039577,-1784.047,0.0001565,2]
[330307769,1719249039587,-156.216,0.0001566,2]
[330307770,1719249039597,-518.04242089,0.00015723,2]
[330307771,1719249039607,-155.0,0.00015772,2]
[330307772,1719249039618,-155.20249672,0.00015773,2]
[330307773,1719249039628,-364.63418018,0.00015775,2]
[330307774,1719249039638,-699.77570431,0.00015788,2]
[330307775,1719249039648,-2623.65203148,0.00015788,2]
[330307776,1719249039658,-274.03,0.0001589,4]
[330307777,1719249039668,-1012.62731708,0.00015969,2]
[330307778,1719249039678,-1784.04701,0.0001597,2]
[330307779,1719249039688,-854.5565369,0.00016041,2]
[330307780,1719249039698,-16990.2,0.00016115,2]
[330307781,1719249039709,-10619.76,0.00016116,2]
[330307782,1719249039722,-1156.8,0.00016116,2]
[330307783,1719249039733,-6242.01,0.00016116,2]
[330307784,1719249039744,-29999.99,0.00016116,2]
[330307785,1719249039754,-10081.44291628,0.00016116,2]
[330307786,1719249039766,-250.72483339,0.00016116,2]
[330307790,1719249039778,-1000.0,0.00016116,2]
[330307793,1719249039790,-1127.12515394,0.00016116,2]